Cogmind - Beta 13 @@@ ROGUE MODE // 2024.04.09 @ 13:22:43 Player: Niko Result: Destroyed by 2K-WOR(R) with Subdweller Laser Performance ------------- Evolutions (0) 0 Regions Visited (3) 600 Robots Destroyed (11) 55 Value Destroyed (361) 361 Prototype IDs (0) 0 Alien Tech Used (0) 0 Bonus (0) 0 TOTAL SCORE: 1016 Bonus ------- None Cogmind --------- Core Integrity 0/250 Matter 300/300 Energy 77/100 System Corruption 0% Temperature Cool (6) Movement Core (50) Location -10/Subcaves Parts ------- > --- POWER (1) -------- (None) > --- PROPULSION (2) --- (None) > --- UTILITY (2) ------ (None) > --- WEAPON (2) ------- (None) > --- INVENTORY (5) ---- Light Angular Momentum Engine Sensor Array Targeting Computer Decoy Drone Bay Peak State ------------ > --- POWER ------------ Ion Engine > --- PROPULSION ------- Wheel Wheel > --- UTILITY ---------- Small Storage Unit Targeting Computer > --- WEAPON ----------- Heavy Assault Rifle Plasma Flamer > --- INVENTORY -------- Light Angular Momentum Engine Compact Wheel Sensor Array Targeting Computer Decoy Drone Bay Small Laser Assault Rifle [Rating: 14] Favorites ----------- Power Ion Engine Engine Ion Engine Propulsion Wheel Wheel Wheel Utility Small Storage Unit Device Sensor Array Storage Small Storage Unit Processor Targeting Computer Weapon Assault Rifle Ballistic Gun Assault Rifle Special Weapon Plasma Flamer Build | -11 -10 -10 -10 ------- Run | Yrd Mat Min Sub Slots Evolved . | . . . . Power . | . . . . Propulsion . | . . . . Utility . | . . . . Weapon . | . . . . Parts Attached 18 | 6 4 8 . Power 2 | 1 . 1 . Engine 2 | 1 . 1 . Core . | . . . . Reactor . | . . . . Propulsion 5 | 2 2 1 . Treads . | . . . . Leg . | . . . . Wheel 5 | 2 2 1 . Hover . | . . . . Flight . | . . . . Utility 3 | 1 1 1 . Device 1 | . 1 . . Storage 1 | 1 . . . Processor 1 | . . 1 . Hackware . | . . . . Protection . | . . . . Artifact . | . . . . Weapon 8 | 2 1 5 . Energy Gun . | . . . . Energy Cannon . | . . . . Ballistic Gun 7 | 2 1 4 . Ballistic Cannon . | . . . . Launcher . | . . . . Special Weapon 1 | . . 1 . Impact Weapon . | . . . . Slashing Weapon . | . . . . Piercing Weapon . | . . . . Special Melee Weapon . | . . . . Unidentified Prototypes . | . . . . Parts Lost 3 | . . 3 . Power 1 | . . 1 . Propulsion 1 | . . 1 . Utility . | . . . . Weapon 1 | . . 1 . Highest Loss Streak 2 | . . 2 . To Critical Strikes . | . . . . Average Slot Usage (%) 78 | . 67 81 53 Engine 9 | . 8 10 . Wheel 19 | . 21 20 . Storage 13 | . 14 14 12 Processor 9 | . . 10 12 Ballistic Gun 17 | . 21 16 28 Special Weapon 7 | . . 9 . Naked Turns 2 | . . . 2 Heaviest Build 16 | 12 13 16 9 Greatest Support 26 | 26 26 20 3 Greatest Overweight (x) 3 | . 3 3 2 Average Overweight (x) . | . . . 1 Largest Inventory Capacity 8 | 8 8 8 8 Average Capacity 7 | 6 8 8 7 Most Carried 8 | 5 8 8 8 Average Carried 7 | 2 4 7 7 Final Capacity 8 | 8 8 8 5 Final Carried 8 | 2 6 8 5 Class Distribution -------------------- 100% | Mutant Dominant Class ---------------- Mutant | -10/Materials Mutant | -10/Mines Mutant | -10/Subcaves Resources | -11 -10 -10 -10 ----------- Run | Yrd Mat Min Sub Matter Collected 554 | 229 26 299 . Remotely . | . . . . Salvage Created 332 | . 26 306 . Parts 13 | . 2 11 . Haulers Intercepted . | . . . . Recyclers Shooed . | . . . . Parts Field Recycled . | . . . . Retrieved Matter . | . . . . Parts Self-Destructed . | . . . . Prevented . | . . . . Kills | -11 -10 -10 -10 ------- Run | Yrd Mat Min Sub Combat Hostiles Destroyed 10 | . . 10 . Guns 7 | . . 7 . Cannons 1 | . . 1 . Classes Destroyed 5 | . 1 4 . Builder 1 | . . 1 . Watcher 1 | . 1 . . Grunt 8 | . . 8 . Sentry 1 | . . 1 . Assembled 1 | . . 1 . Best Kill Streak 5 | . 1 5 . Combat Bots Only 4 | . . 4 . Max Kills in Single Turn 2 | . 1 2 . Gunslinging . | . . . . Exploded . | . . . . Melee . | . . . . Uniques/NPCs Destroyed . | . . . . Combat | -11 -10 -10 -10 -------- Run | Yrd Mat Min Sub Hostile Shots Fired 62 | . . 50 12 Missed 13 | . . 10 3 Damage Taken 794 | . . 499 295 Core 260 | . . 128 132 Absorbed by Shields . | . . . . Core Remaining (%) 100 | 100 . . . Volleys Fired 63 | . 3 60 . Largest 2 | . 2 2 . Hottest 123 | . 40 123 . Shots Fired 85 | . 6 79 . Gun 60 | . 6 54 . Cannon . | . . . . Launcher . | . . . . Special 25 | . . 25 . Kinetic 60 | . 6 54 . Thermal 25 | . . 25 . Explosive . | . . . . Electromagnetic . | . . . . Robot Hit Streak 16 | . 1 16 . Robot Miss Streak 3 | . 1 3 . Penetration Max . | . . . . Secondary Targets 2 | . . 2 . Max Gunslinging Chain 1 | . . 1 . Shots Hit Robots 55 | . 3 52 . Core Hits 19 | . 2 17 . Critical Kills . | . . . . Critical Parts Destroyed . | . . . . Critical Strikes 6 | . . 6 . Burn 6 | . . 6 . Melee Attacks . | . . . . Impact . | . . . . Slashing . | . . . . Piercing . | . . . . Sneak Attacks . | . . . . Combat Hostiles . | . . . . Follow-up Attacks . | . . . . Damage Inflicted 768 | . 37 731 . Guns 516 | . 37 479 . Cannons . | . . . . Explosions . | . . . . Melee . | . . . . Ramming 9 | . . 9 . Kinetic 516 | . 37 479 . Thermal 243 | . . 243 . Explosive . | . . . . Electromagnetic . | . . . . Impact . | . . . . Slashing . | . . . . Piercing . | . . . . Highest Corruption . | . . . . Average Corruption . | . . . . Corruption Purged . | . . . . Corruption Blocked . | . . . . Overload Shots . | . . . . Overflow Damage . | . . . . Projectiles . | . . . . Explosions . | . . . . Melee . | . . . . Knockbacks 1 | . . 1 . Impact 1 | . . 1 . Kinetic . | . . . . Secondary . | . . . . Self-Inflicted Damage 4 | . . 4 . Shots . | . . . . Rammed 1 | . . 1 . Targets Rammed 1 | . . 1 . Kicked . | . . . . Crushed . | . . . . Highest Temperature 372 | . . 372 . Average Temperature 168 | . . 168 . Received Heat Transfer 291 | . . 243 48 Effects 2 | . . 2 . Interference 1 | . . 1 . Damage (minor) 1 | . . 1 . Siege Activations . | . . . . Robots Corrupted . | . . . . Combat Hostiles . | . . . . Parts Fried . | . . . . Impact Corruptions . | . . . . Robots Melted 2 | . . 2 . Combat Hostiles 2 | . . 2 . Parts Melted 8 | . . 8 . Heat Transferred 2480 | . . 2480 . Parts Sabotaged . | . . . . Parts Stolen . | . . . . Parts Stripped . | . . . . Power Chain Reactions . | . . . . Alert | -11 -10 -10 -10 ------- Run | Yrd Mat Min Sub Peak Influence 125 | . 82 125 . Initial 31 | . . 31 . Average 56 | . 31 61 . Maximum Alert Level . | . . . . Low Security (%) 100 | 100 100 100 . Level 1 . | . . . . Level 2 . | . . . . Level 3 . | . . . . Level 4 . | . . . . Level 5 . | . . . . High Security . | . . . . Max Security . | . . . . Squads Dispatched 1 | . 1 . . Investigation . | . . . . Extermination . | . . . . Reinforcement 1 | . 1 . . Assault . | . . . . Garrison . | . . . . Intercept . | . . . . Searches Triggered . | . . . . Construction Impeded . | . . . . Haulers Reinforced . | . . . . Active Scanning Responses . | . . . . Cargo Convoy Interrupts . | . . . . Stealth | -11 -10 -10 -10 --------- Run | Yrd Mat Min Sub Distress Signals . | . . . . Communications Jammed . | . . . . Distress Signals . | . . . . Times Spotted 28 | . 7 13 8 Peak Tracking Total 8 | . 5 3 8 Tactical Retreats 3 | . 1 2 . Traps | -11 -10 -10 -10 ------- Run | Yrd Mat Min Sub Traps Triggered 2 | . 2 . . Indirectly . | . . . . Trap Hack Attempts . | . . . . Triggered . | . . . . Disarmed . | . . . . Reprogrammed . | . . . . Reused . | . . . . Traps Extracted . | . . . . Installed . | . . . . Triggered . | . . . . Machines | -11 -10 -10 -10 ---------- Run | Yrd Mat Min Sub Machines Disabled 1 | . 1 . . Max in Single Turn 1 | . 1 . . Machines Repaired . | . . . . Machines Dismantled . | . . . . Machines Sabotaged . | . . . . Overloaded Fab Kills . | . . . . Hacking | -11 -10 -10 -10 --------- Run | Yrd Mat Min Sub Machines Accessed 1 | . . 1 . Terminals . | . . . . Fabricators . | . . . . Repair Stations . | . . . . Recycling Units . | . . . . Scanalyzers . | . . . . Garrison Access . | . . . . Total Hacks 1 | . . 1 . Successful 1 | . . 1 . Failed . | . . . . Catastrophic . | . . . . Database Lockouts . | . . . . Manual 2 | . 2 . . Terminals . | . . . . Fabricators . | . . . . Repair Stations . | . . . . Recycling Units . | . . . . Scanalyzers . | . . . . Garrison Access . | . . . . Terminal Hacks 1 | . . 1 . Open Door 1 | . . 1 . Fabricator Hacks . | . . . . Repair Station Hacks . | . . . . Recycling Unit Hacks . | . . . . Scanalyzer . | . . . . Garrison Access Hacks . | . . . . Unauthorized Hacks . | . . . . Terminals . | . . . . Fabricators . | . . . . Repair Stations . | . . . . Recycling Units . | . . . . Scanalyzers . | . . . . Garrison Access . | . . . . Data Cores Recovered . | . . . . Used . | . . . . Hacking Detections 1 | . 1 . . Full Trace Events . | . . . . Feedback Events . | . . . . Feedback Blocked . | . . . . Robot Schematics Acquired . | . . . . Robots Built . | . . . . Authchips . | . . . . Time . | . . . . Total Robot Build Rating . | . . . . Part Schematics Acquired . | . . . . Parts Built . | . . . . Authchips . | . . . . Time . | . . . . Total Part Build Rating . | . . . . Parts Repaired . | . . . . Time . | . . . . Parts Recycled . | . . . . Recycled Matter . | . . . . Retrieved Matter . | . . . . Retrieved Components . | . . . . Parts Scanalyzed . | . . . . Part Schematics Acquired . | . . . . Parts Damaged . | . . . . Bothacking | -11 -10 -10 -10 ------------ Run | Yrd Mat Min Sub Used RIF Installer . | . . . . Robots Hacked . | . . . . Non-combat . | . . . . Combat . | . . . . Robot Hacks Applied . | . . . . Relay Couplers Released . | . . . . Fabnet Peak Effective % . | . . . . Robots Rewired . | . . . . Allies Hacked . | . . . . Hacks Repelled . | . . . . Allies | -11 -10 -10 -10 -------- Run | Yrd Mat Min Sub Total Allies . | . . . . Largest Group . | . . . . Highest-Rated Group . | . . . . Highest-Rated Ally . | . . . . Total Orders . | . . . . Ally Attacks . | . . . . Total Damage . | . . . . Kills . | . . . . Allies Corrupted . | . . . . Allies Melted . | . . . . Intel | -11 -10 -10 -10 ------- Run | Yrd Mat Min Sub Robot Analysis Total . | . . . . Derelict Logs Recovered 3 | . . 2 1 Drone Launches . | . . . . Drone Recoveries . | . . . . Exploration | -11 -10 -10 -10 ------------- Run | Yrd Mat Min Sub Turns Passed 1481 | 41 127 1222 91 Spaces Moved 929 | 37 111 722 59 Core 278 | 14 18 187 59 Treads . | . . . . Legs . | . . . . Wheels 651 | 23 93 535 . Hover . | . . . . Flight . | . . . . Fastest Speed 50 | 50 80 80 50 Average Speed 98 | 74 96 95 144 Slowest Speed 200 | 90 200 200 150 Overloaded Moves . | . . . . Propulsion Burnouts . | . . . . Robots Hopped . | . . . . Cave-ins Triggered . | . . . . Exploration Rate (%) 32 | 4 26 93 8 Regions Visited 3 Branch Regions 2 Pre-discovered Areas 1 | . . 1 . Known Exits Taken . | . . . . Unknown Exits Taken 3 | 1 1 1 . Scrap Searched 1 | . . . 1 Spaces Dug . | . . . . Terrain Destroyed . | . . . . Melee . | . . . . Projectile . | . . . . AOE . | . . . . Terrain Rammed . | . . . . Walls Destroyed . | . . . . Machines Disabled . | . . . . Actions | -11 -10 -10 -10 --------- Run | Yrd Mat Min Sub Total 1401 | 49 124 1162 66 Wait 365 | . . 362 3 Move 926 | 36 110 721 59 Hop . | . . . . Pick Up 18 | 7 7 4 . Fast Attach 5 | 1 1 3 . Attach 12 | 5 3 4 . Detach 2 | . . 2 . Swap 1 | . . 1 . Drop 8 | . . 4 4 Fire 63 | . 3 60 . Melee . | . . . . Ram 1 | . . 1 . Kick . | . . . . Crush . | . . . . Escape Stasis . | . . . . Rewire . | . . . . Trap . | . . . . Miscellaneous . | . . . . Route ------- -11/Scrapyard -10/Materials -10/Mines (discovered 3 exits: [*Mat x2] / [*Sub]) -10/Subcaves (discovered 1 exit: Mat) History --------- Turn | Location | Event 2 | -11/Scrapyard | Met Revision 17 12 | -11/Scrapyard | Discovered new exit (range 16) 42 | -11/Scrapyard | Entered Materials 159 | -10/Materials | Discovered new exit (range 14) 169 | -10/Materials | Entered Mines 173 | -10/Mines | Learned 2 Materials zone layouts 205 | -10/Mines | A weapon hastily lodged in a ceiling crevice suddenly fell to the ground 256 | -10/Mines | Found the Drone Emporium 260 | -10/Mines | Found Prototype Device 310 | -10/Mines | Build established: Mutant 317 | -10/Mines | Discovered new exit (range 13) 350 | -10/Mines | Discovered new exit (range 8) 354 | -10/Mines | Learned location of Storage (-8) 482 | -10/Mines | Joined a pair of Derelicts in attacking an 0b10 outpost 561 | -10/Mines | Learned Materials emergency access door positions 638 | -10/Mines | Excavation squad dispatched 638 | -10/Mines | A large section of the Mines collapsed 888 | -10/Mines | Excavation squad dispatched 1110 | -10/Mines | Core integrity fell below 50% 1373 | -10/Mines | Discovered new exit (range 13) 1391 | -10/Mines | Entered Subcaves 1415 | -10/Subcaves | Identified exit to Materials 1464 | -10/Subcaves | Ambushed by swarm of Subdwellers 1469 | -10/Subcaves | Ambushed by Subdwellers from Twisted Machinery 1477 | -10/Subcaves | Core integrity fell below 20% 1482 | -10/Subcaves | Destroyed by 2K-WOR(R) with Subdweller Laser Last Messages --------------- FR-8Z6(R) destroyed. HV Slug penetrates TJ-5YH(R). HV Slug penetrates TT-FFW(R). TT-FFW(R) suffers critical hit (Destroy). JZ-INO(R) suffers critical hit (Destroy). F6-SUB(R) affixes Scrap Shield Fragment to Scrap Shield. QC-C1I(g) destroyed. O4-BPR(g) destroyed. HV Slug penetrates TJ-5YH(R). TJ-5YH(R) suffers critical hit (Destroy). TJ-5YH(R) knocked back. HV Slug penetrates TJ-5YH(R). HV Slug penetrates Wall. Discarded Targeting Computer. Dropped Sml. Storage Unit. Dropped Assault Rifle. F6-SUB(R) suffers critical hit (Burn). HV Slug penetrates TJ-5YH(R). TJ-5YH(R) knocked back. Map ----- +----------------------------------------------------+ | ????????????????????????????## ????????????????? | | ????????????????????????????? ???????????????? | | ?????????????????????????????? ???????????????? | | ??????????????????????????????? #??????????????? | | ???????????????????????????????# ######????????? | | ??????????????????????? ?????# #????????? | | ????????????????????? ????? #????????? | | ?????????????????????? ?????? ###???##?? | | ??????????????????????? #??????# ## #?? | | ???????????????????????# #??????# ??? | | ???????????????????##### ??????# ??????? | | ??????????????????? ##????# !#?????????? | | ??????????????????? #????## #?##????? | | ???????????????????? ##????# ## #???? | | ??????????????????????? ##??## #??# | | ?????????????????????????# ##?# ## ## | | ??????????????????????????# ### | | ????????????????????????????# % | | ???????????????????????????## [ | | ????????????????????###????# | | ??????????????????### ##??## | | ?????????????????## #### ## ### | | ????????????###??# ### ##??? | | ????????????# ### ## ## ##????? | | ???????????## ## ### #######?????? | | ??????????## @### #?####???????????? | | ????????### ;;# ## ??????????????? | | ???????## ; ; [ ## #????????????? | | ???????# [![ ### #???????????? | | ???????##### g% ![ #?? #???????????? | | ???????????#####R %R ##? #???????????? | | ???????????##??# hR[ ## #???????????? | | ??????????##"###RRR #?# #???????????? | | ??????????#""% % ;; ##?? ???????????? | | ??????????# % %R;#; ###########???? ???????????? | | ??????????####; ;####????????????????????????????? | | ????????????# ###????????????????????????????????? | | ????????????#????????????????????????????????????? | | ?????????????????????????????????????????????????? | | ?????????????????????????????????????????????????? | | ?????????????????????????????????????????????????? | | ?????????????????????????????????????????????????? | | ?????????????????????????????????????????????????? | | ?????????????????????????????????????????????????? | | ?????????????????????????????????????????????????? | | ?????????????????????????????????????????????????? | | ?????????????????????????????????????????????????? | | ?????????????????????????????????????????????????? | | ?????????????????????????????????????????????????? | | ?????????????????????????????????????????????????? | +----------------------------------------------------+ Best States ------------- Heat Dissipation 25 Energy Generation 10 Energy Capacity 250 Matter Stores 300 Matter Capacity 300 Sight Range 16 Robot Scan Range 14 Terrain Scan Density 10 Evasion (%) 50 Targeting Accuracy 5 Item Schematics ----------------- None Robot Schematics ------------------ None Fabricated ------------ Nothing Alien Tech Used ----------------- None Achievements -------------- None Challenges ------------ None Game ------ Seed MakeshiftMinesnifferPurifier Manual? 0 Play Time 00:14:37 Cumulative 15.6 hours Start 2024.04.09 @ 13:08:44 End 2024.04.09 @ 13:22:43 Sessions 1 Manual Loads 0 Difficulty Rogue Special Mode None Game No. 29 Rogue 29 Adventurer 0 Explorer 0 Win Type - Total 0 Types 0/0/0/0/0/0/0/0/0 Lore% 19 Gallery% 23 Achievement% 22 Wizard Run 0 Options --------- Layout 1 ASCII 0 Keyboard 0 Movement Mouse Keybinds 0 Fullscreen 1 Font 24/Smallcaps Map View 50x35 Zoom Use 0% Tactical HUD 0 Map Filters NONE Filters NONE Steam 1 RUN: e800f21e-6d33-423b-a202-357bc9c41d53